fUST/lending_fUST_20240919
["ID","MTS","AMOUNT","RATE_DAILY","PERIOD"]
[338576966,1726743047471,-452.75639351,0.00016712,2]
[338576967,1726743047481,-500.0,0.00016712,2]
[338576968,1726743047490,-500.0,0.00016712,2]
[338576969,1726743047499,-500.0,0.00016712,2]
[338576970,1726743047508,-500.0,0.00016712,2]
[338576971,1726743047518,-500.0,0.00016712,2]
[338576972,1726743047527,-710.51,0.00016712,2]
[338576973,1726743047537,-500.0,0.00016712,2]
[338576974,1726743047546,-500.0,0.00016712,2]
[338576975,1726743047556,-500.0,0.00016712,2]
[338576976,1726743047566,-500.0,0.00016712,2]
[338576977,1726743047575,-1189.06,0.00016712,2]
[338576978,1726743047585,-500.0,0.00016712,2]
[338576979,1726743047594,-948.94,0.00016712,2]
[338576980,1726743047604,-500.0,0.00016712,2]
[338576981,1726743047613,-587.46,0.00016712,2]
[338576982,1726743047623,-985.4,0.00016712,2]
[338576983,1726743047633,-655.17,0.00016712,2]
[338576984,1726743047642,-500.0,0.00016712,2]
[338576985,1726743047651,-500.0,0.00016712,2]
[338576986,1726743047660,-500.0,0.00016712,2]
[338576987,1726743047669,-500.0,0.00016712,2]
[338576988,1726743047679,-500.0,0.00016712,2]
[338576989,1726743047693,-317.82712632,0.00016712,2]
[338576990,1726743047702,-500.0,0.00016712,2]
[338576991,1726743047712,-500.0,0.00016712,2]
[338576992,1726743047721,-500.0,0.00016712,2]
[338576993,1726743047731,-500.0,0.00016712,2]
[338576994,1726743047741,-500.0,0.00016712,2]
[338576995,1726743047750,-500.0,0.00016712,2]
[338576996,1726743047760,-753.3,0.00016712,2]
[338576997,1726743047770,-953.01,0.00016712,2]
[338576998,1726743047779,-383.12769975,0.00016712,2]
[338576999,1726743047788,-500.0,0.00016712,2]
[338577000,1726743047798,-500.0,0.00016712,2]
[338577001,1726743047807,-754.87,0.00016712,2]
[338577002,1726743047816,-550.50159571,0.00016712,2]
[338577003,1726743047826,-500.0,0.00016712,2]
[338577004,1726743047835,-1372.54,0.00016712,2]
[338577005,1726743047844,-500.0,0.00016712,2]
[338577006,1726743047854,-534.93,0.00016712,2]
[338577007,1726743047863,-1211.99,0.00016712,2]
[338577008,1726743047872,-500.0,0.00016712,2]
[338577009,1726743047882,-1039.09,0.00016712,2]
[338577010,1726743047891,-784.83,0.00016712,2]
[338577011,1726743047900,-500.0,0.00016712,2]
[338577012,1726743047910,-1880.57,0.00016712,2]
[338577013,1726743047919,-539.78,0.00016712,2]
[338577014,1726743047929,-500.0,0.00016712,2]
[338577015,1726743047938,-760.16,0.00016712,2]
[338577016,1726743047948,-1442.69,0.00016712,2]
[338577017,1726743047958,-500.0,0.00016712,2]
[338577018,1726743047967,-500.0,0.00016712,2]
[338577019,1726743047977,-1252.09,0.00016712,2]
[338577020,1726743047986,-500.0,0.00016712,2]
[338577021,1726743047995,-496.74849521,0.00016712,2]
[338577022,1726743048969,-7235.91948504,0.0001531,2]
[338577023,1726743048981,-17664.08051496,0.0001531,2]
[338577024,1726743048991,-841.75,0.00016438,2]
[338577025,1726743049001,-410.42150479,0.00016712,2]
[338577026,1726743049011,-500.0,0.00016712,2]
[338577027,1726743049020,-500.0,0.00016712,2]
[338577028,1726743049030,-500.0,0.00016712,2]
[338577029,1726743049040,-751.2,0.00016712,2]
[338577030,1726743049050,-500.0,0.00016712,2]
[338577031,1726743049059,-500.0,0.00016712,2]
[338577032,1726743049069,-500.0,0.00016712,2]
[338577033,1726743049079,-500.0,0.00016712,2]
[338577034,1726743049088,-1276.97,0.00016712,2]
[338577035,1726743049098,-508.09045128,0.00016712,2]
[338577036,1726743049108,-1333.0,0.00016712,2]
[338577037,1726743049117,-500.61681258,0.00016712,2]
[338577038,1726743049127,-500.0,0.00016712,2]
[338577039,1726743049137,-500.0,0.00016712,2]
[338577040,1726743049147,-500.0,0.00016712,2]
[338577041,1726743049157,-500.0,0.00016712,2]
[338577042,1726743049166,-514.49,0.00016712,2]
[338577043,1726743049176,-764.77,0.00016712,2]
[338577044,1726743049185,-910.23,0.00016712,2]
[338577045,1726743049195,-1633.04,0.00016712,2]
[338577046,1726743049204,-500.0,0.00016712,2]
[338577047,1726743049214,-2398.62,0.00016712,2]
[338577048,1726743049224,-500.0,0.00016712,2]
[338577049,1726743049233,-1957.49,0.00016712,2]
[338577050,1726743049243,-1420.23,0.00016712,2]
[338577051,1726743049253,-724.59,0.00016712,2]
[338577052,1726743049263,-500.0,0.00016712,2]
[338577053,1726743049273,-500.0,0.00016712,2]
[338577054,1726743049282,-500.0,0.00016712,2]
[338577055,1726743049292,-573.61879901,0.00016712,2]
[338577056,1726743049301,-824.53,0.00016712,2]
[338577057,1726743049311,-952.47,0.00016712,2]
[338577058,1726743049321,-775.29,0.00016712,2]
[338577059,1726743049339,-500.0,0.00016712,2]
[338577060,1726743049348,-574.44,0.00016712,2]
[338577061,1726743049358,-854.52,0.00016712,2]
[338577062,1726743049367,-500.0,0.00016712,2]
[338577063,1726743049377,-500.0,0.00016712,2]
[338577064,1726743049386,-500.0,0.00016712,2]
[338577065,1726743049395,-500.0,0.00016712,2]
[338577066,1726743049404,-500.0,0.00016712,2]
[338577067,1726743049413,-500.0,0.00016712,2]
[338577068,1726743049423,-500.0,0.00016712,2]
[338577069,1726743049433,-643.66236891,0.00016712,2]
[338577070,1726743049442,-629.87,0.00016712,2]
[338577071,1726743049451,-1227.52,0.00016712,2]
[338577072,1726743049460,-500.0,0.00016712,2]
[338577073,1726743049469,-1130.66,0.00016712,2]
[338577074,1726743049478,-2105.58620326,0.00016712,2]
[338577075,1726743049492,-129.11379674,0.00016712,2]
[338577076,1726743049501,-500.0,0.00016712,2]
[338577077,1726743049511,-554.53,0.00016712,2]
[338577078,1726743049521,-500.0,0.00016712,2]
[338577079,1726743049530,-500.0,0.00016712,2]
[338577080,1726743049539,-500.0,0.00016712,2]
[338577081,1726743049549,-500.0,0.00016712,2]
[338577082,1726743049558,-500.0,0.00016712,2]
[338577083,1726743049567,-984.24,0.00016712,2]
[338577084,1726743049577,-500.0,0.00016712,2]
[338577085,1726743049587,-500.0,0.00016712,2]
[338577086,1726743049596,-1139.48,0.00016712,2]
[338577087,1726743049605,-500.0,0.00016712,2]
[338577088,1726743049615,-1057.43528253,0.00016712,2]
[338577090,1726743087035,156.98,0.00010959,2]
[338577092,1726743123425,170.159,0.00014,2]
[338577096,1726743230114,500.0,0.00013386,2]
[338577099,1726743483750,235.22553746,0.00018,15]
[338577100,1726743591656,401.46,0.00010959,2]
[338577103,1726743853594,250.0,0.00013954,2]
[338577106,1726743977299,159.731901,0.00013954,2]
[338577107,1726743977590,159.731901,0.00013958,2]
[338577108,1726743977822,159.731901,0.00013963,2]
[338577109,1726743978042,159.731901,0.00013967,2]
[338577110,1726743978256,159.731901,0.00013972,2]
[338577111,1726743978670,159.731901,0.00013976,2]
[338577112,1726743978897,159.731901,0.0001398,2]
[338577113,1726743979102,159.731901,0.00013985,2]
[338577114,1726743979506,159.731901,0.00013989,2]
[338577115,1726743979738,159.731901,0.00013993,2]
[338577116,1726743979976,159.731901,0.00013998,2]
[338577117,1726743980186,159.731901,0.00014002,2]
[338577118,1726743980593,159.731901,0.00014006,2]
[338577119,1726743980807,159.731901,0.00014011,2]
[338577120,1726744014116,-159.731901,0.00014015,2]
[338577121,1726744014138,-159.731901,0.00014019,2]
[338577122,1726744014161,-159.731901,0.00014024,2]
[338577123,1726744014183,-250.0,0.00014775,2]
[338577124,1726744014204,-250.0,0.00014816,2]
[338577125,1726744014226,-250.0,0.00014856,2]
[338577126,1726744014248,-250.0,0.00014897,2]
[338577127,1726744014270,-250.0,0.00014937,2]
[338577128,1726744014292,-880.47318053,0.00014973,2]
[338577129,1726744015712,6203.09,0.00014013,2]
[338577130,1726744037108,-1464.0847516,0.00014179,2]
[338577131,1726744037132,-478.560453,0.00014192,2]
[338577132,1726744037155,-2119.52681947,0.00014973,2]
[338577133,1726744037177,-250.0,0.00014978,2]
[338577134,1726744037198,-300.0,0.0001499,2]
[338577135,1726744037219,-300.0,0.0001499,2]
[338577136,1726744037239,-16469.97186331,0.00014991,2]
[338577137,1726744042011,-8430.02813669,0.00014991,2]
[338577138,1726744148121,-250.0,0.00015018,2]
[338577142,1726744150117,-250.0,0.00015059,2]
[338577143,1726744150140,-250.0,0.00015099,2]
[338577144,1726744150165,-250.0,0.0001514,2]
[338577145,1726744150187,-250.0,0.0001518,2]
[338577146,1726744150207,-242.93703016,0.00015221,2]
[338577147,1726744161104,-7.06296984,0.00015221,2]
[338577148,1726744161127,-250.0,0.00015261,2]
[338577149,1726744161150,-250.0,0.00015302,2]
[338577150,1726744161173,-250.0,0.00015342,2]
[338577151,1726744161196,-250.0,0.00015383,2]
[338577152,1726744161220,-161.46345345,0.00015423,2]
[338577163,1726744231730,997.43893407,0.00014966,2]
[338577164,1726744231753,1200.46352734,0.00014966,2]
[338577165,1726744231773,802.09753859,0.00014966,2]
[338577177,1726744232194,-88.53654655,0.00015423,2]
[338577178,1726744232204,-250.0,0.00015464,2]
[338577179,1726744232214,-250.0,0.00015504,2]
[338577180,1726744232224,-250.0,0.00015545,2]
[338577181,1726744232234,-500.0,0.00016126,2]
[338577182,1726744232243,-300.0,0.00016327,2]
[338577183,1726744232253,-300.0,0.00016327,2]
[338577184,1726744232263,-1000.0,0.00016328,2]
[338577185,1726744232272,-4629.33777817,0.00016328,2]
[338577187,1726744232293,-28471.1,0.00016328,2]
[338577188,1726744232304,-600.0,0.00016328,2]
[338577217,1726744238216,-10704.70858223,0.00016328,2]
[338577219,1726744238231,-954.30067083,0.00016337,2]
[338577221,1726744238241,-150.112233,0.000164,2]
[338577223,1726744238251,-150.112234,0.000164,2]
[338577225,1726744238260,-427.10021133,0.00016417,2]
[338577227,1726744238270,-500.0,0.00016417,2]
[338577229,1726744238279,-527.14185555,0.00016417,2]
[338577231,1726744238289,-500.0,0.00016417,2]
[338577233,1726744238298,-500.0,0.00016417,2]
[338577235,1726744238309,-500.0,0.00016417,2]
[338577237,1726744238319,-500.0,0.00016417,2]
[338577239,1726744238329,-500.0,0.00016417,2]
[338577241,1726744238339,-500.0,0.00016417,2]
[338577244,1726744238350,-500.0,0.00016417,2]
[338577246,1726744238361,-500.0,0.00016417,2]
[338577248,1726744238370,-391.96065115,0.00016417,2]
[338577249,1726744238379,-500.0,0.00016417,2]
[338577252,1726744238389,-500.0,0.00016417,2]
[338577254,1726744238398,-286423.339007,0.00016418,2]
[338577255,1726744238408,-51700.1485721,0.00016418,2]
[338577257,1726744238417,-17233.3828573,0.00016428,2]
[338577259,1726744238427,-332.61141814,0.00016437,2]
[338577262,1726744238438,-500.0,0.00016437,2]
[338577264,1726744238448,-500.0,0.00016437,2]
[338577266,1726744238457,-500.0,0.00016437,2]
[338577268,1726744238468,-500.0,0.00016437,2]
[338577270,1726744238478,-199.22515239,0.00016437,2]
[338577272,1726744238487,-500.0,0.00016437,2]
[338577274,1726744238497,-500.0,0.00016437,2]
[338577276,1726744238506,-500.0,0.00016437,2]
[338577278,1726744238515,-500.0,0.00016437,2]
[338577280,1726744238525,-500.0,0.00016437,2]
[338577282,1726744238535,-500.0,0.00016437,2]
[338577284,1726744238544,-500.0,0.00016437,2]
[338577286,1726744238554,-500.0,0.00016437,2]
[338577288,1726744238563,-500.0,0.00016437,2]
[338577290,1726744238573,-615.00830346,0.00016437,2]
[338577292,1726744238582,-500.0,0.00016437,2]
[338577294,1726744238592,-500.0,0.00016437,2]
[338577296,1726744238601,-331.0892296,0.00016437,2]
[338577297,1726744238610,-500.0,0.00016437,2]
[338577299,1726744238620,-500.0,0.00016437,2]
[338577301,1726744238629,-500.0,0.00016437,2]
[338577303,1726744238638,-500.0,0.00016437,2]
[338577305,1726744238647,-500.0,0.00016437,2]
[338577307,1726744238658,-500.0,0.00016437,2]
[338577309,1726744238667,-500.0,0.00016437,2]
[338577311,1726744238676,-568.91595487,0.00016437,2]
[338577313,1726744238685,-568.91595487,0.00016437,2]
[338577315,1726744238695,-568.91595487,0.00016437,2]
[338577317,1726744238704,-568.91595487,0.00016437,2]
[338577319,1726744238717,-568.91595487,0.00016437,2]
[338577321,1726744238727,-568.91595487,0.00016437,2]
[338577323,1726744238736,-568.91595487,0.00016437,2]
[338577325,1726744238745,-568.91595487,0.00016437,2]
[338577327,1726744238754,-568.91595487,0.00016437,2]
[338577329,1726744238764,-568.91595487,0.00016437,2]
[338577331,1726744238773,-763.72656971,0.00016437,2]
[338577333,1726744238782,-763.72656971,0.00016437,2]
[338577335,1726744238792,-160.0,0.00016437,2]
[338577337,1726744238802,-169.32771625,0.00016438,2]
[338577339,1726744238811,-298.62128832,0.00016438,2]
[338577341,1726744238820,-500.0,0.00016438,2]
[338577343,1726744238829,-500.0,0.00016438,2]
[338577345,1726744238839,-506.13118977,0.00016438,2]
[338577347,1726744238848,-500.0,0.00016438,2]
[338577349,1726744238857,-500.0,0.00016438,2]
[338577351,1726744238867,-500.0,0.00016438,2]
[338577353,1726744238876,-500.0,0.00016438,2]
[338577355,1726744238886,-500.0,0.00016438,2]
[338577357,1726744238895,-523.41655012,0.00016438,2]
[338577359,1726744238904,-500.0,0.00016438,2]
[338577361,1726744238913,-500.0,0.00016438,2]
[338577363,1726744238923,-500.0,0.00016438,2]
[338577365,1726744238932,-500.29991761,0.00016438,2]
[338577367,1726744238942,-500.0,0.00016438,2]
[338577369,1726744238951,-500.0,0.00016438,2]
[338577371,1726744238960,-500.0,0.00016438,2]
[338577373,1726744238973,-510.72935629,0.00016438,2]
[338577375,1726744238983,-500.0,0.00016438,2]
[338577377,1726744238992,-657.74,0.00016438,2]
[338577379,1726744239001,-948.32,0.00016438,2]
[338577381,1726744239010,-500.0,0.00016438,2]
[338577383,1726744239019,-500.0,0.00016438,2]
[338577384,1726744239029,-500.0,0.00016438,2]
[338577386,1726744239038,-500.0,0.00016438,2]
[338577387,1726744239048,-218.78350112,0.00016438,2]
[338577388,1726744239058,-500.0,0.00016438,2]
[338577389,1726744239067,-954.44,0.00016438,2]
[338577390,1726744239077,-500.29110923,0.00016438,2]
[338577391,1726744239086,-500.0,0.00016438,2]
[338577392,1726744239095,-500.0,0.00016438,2]
[338577393,1726744239104,-500.0,0.00016438,2]
[338577394,1726744239113,-500.0,0.00016438,2]
[338577395,1726744239126,-500.0,0.00016438,2]
[338577396,1726744239135,-500.0,0.00016438,2]
[338577397,1726744239145,-500.0,0.00016438,2]
[338577398,1726744239154,-383.12769975,0.00016438,2]
[338577399,1726744239163,-500.0,0.00016438,2]
[338577400,1726744239174,-500.0,0.00016438,2]
[338577401,1726744239183,-500.0,0.00016438,2]
[338577402,1726744239193,-500.0,0.00016438,2]
[338577403,1726744239205,-500.0,0.00016438,2]
[338577404,1726744239215,-500.0,0.00016438,2]
[338577405,1726744239223,-560.56,0.00016438,2]
[338577406,1726744239233,-500.0,0.00016438,2]
[338577407,1726744239242,-1435.11,0.00016438,2]
[338577408,1726744239252,-500.0,0.00016438,2]
[338577409,1726744239261,-563.89723577,0.00016438,2]
[338577410,1726744239270,-500.0,0.00016438,2]
[338577411,1726744239279,-500.0,0.00016438,2]
[338577412,1726744239289,-500.0,0.00016438,2]
[338577413,1726744239298,-500.0,0.00016438,2]
[338577414,1726744239307,-500.0,0.00016438,2]
[338577415,1726744239316,-213.97306972,0.00016438,2]
[338577416,1726744239326,-500.0,0.00016438,2]
[338577417,1726744239335,-500.0,0.00016438,2]
[338577418,1726744239345,-500.0,0.00016438,2]
[338577419,1726744239354,-500.0,0.00016438,2]
[338577420,1726744239363,-500.0,0.00016438,2]
[338577421,1726744239373,-500.0,0.00016438,2]
[338577422,1726744239383,-500.0,0.00016438,2]
[338577423,1726744239392,-500.0,0.00016438,2]
[338577424,1726744239402,-500.0,0.00016438,2]
[338577425,1726744239411,-500.0,0.00016438,2]
[338577426,1726744239420,-500.0,0.00016438,2]
[338577427,1726744239434,-500.0,0.00016438,2]
[338577428,1726744239443,-500.0,0.00016438,2]
[338577429,1726744239453,-500.0,0.00016438,2]
[338577430,1726744239463,-500.0,0.00016438,2]
[338577431,1726744239472,-500.0,0.00016438,2]
[338577432,1726744239482,-500.0,0.00016438,2]
[338577433,1726744239491,-500.0,0.00016438,2]
[338577434,1726744239501,-500.0,0.00016438,2]
[338577435,1726744239510,-500.0,0.00016438,2]
[338577436,1726744239520,-500.0,0.00016438,2]
[338577437,1726744239529,-500.0,0.00016438,2]
[338577438,1726744239539,-500.0,0.00016438,2]
[338577439,1726744239548,-500.0,0.00016438,2]
[338577440,1726744239558,-500.0,0.00016438,2]
[338577441,1726744239568,-500.0,0.00016438,2]
[338577442,1726744239577,-500.0,0.00016438,2]
[338577443,1726744239586,-500.0,0.00016438,2]
[338577444,1726744239595,-500.0,0.00016438,2]
[338577445,1726744239605,-235.52800243,0.00016438,2]
[338577446,1726744239615,-862.86,0.00016438,2]
[338577447,1726744239624,-525.58,0.00016438,2]
[338577448,1726744239633,-509.5149322,0.00016438,2]
[338577449,1726744239643,-500.0,0.00016438,2]
[338577450,1726744239652,-500.0,0.00016438,2]
[338577451,1726744239664,-503.96153996,0.00016438,2]
[338577452,1726744239673,-500.0,0.00016438,2]
[338577453,1726744239682,-500.0,0.00016438,2]
[338577454,1726744239691,-500.0,0.00016438,2]
[338577455,1726744239700,-427.88488568,0.00016438,2]
[338577456,1726744239710,-583.99,0.00016438,2]
[338577457,1726744239720,-500.0,0.00016438,2]
[338577458,1726744239730,-500.0,0.00016438,2]
[338577460,1726744239739,-500.0,0.00016438,2]
[338577462,1726744239748,-500.0,0.00016438,2]
[338577463,1726744239757,-500.57178608,0.00016438,2]
[338577464,1726744239766,-500.0,0.00016438,2]
[338577465,1726744239775,-500.0,0.00016438,2]
[338577466,1726744239784,-500.0,0.00016438,2]
[338577468,1726744239793,-500.0,0.00016438,2]
[338577469,1726744239803,-500.0,0.00016438,2]
[338577470,1726744239812,-500.0,0.00016438,2]
[338577471,1726744239822,-500.0,0.00016438,2]
[338577472,1726744239831,-1713.93,0.00016438,2]
[338577473,1726744239841,-500.0,0.00016438,2]
[338577474,1726744239851,-500.0,0.00016438,2]
[338577475,1726744239861,-555.83,0.00016438,2]
[338577477,1726744239872,-658.28,0.00016438,2]
[338577479,1726744239882,-500.0,0.00016438,2]
[338577480,1726744239892,-893.43,0.00016438,2]
[338577481,1726744239902,-500.0,0.00016438,2]
[338577482,1726744239912,-500.0,0.00016438,2]
[338577484,1726744239923,-500.0,0.00016438,2]
[338577485,1726744239933,-500.0,0.00016438,2]
[338577486,1726744239943,-500.0,0.00016438,2]
[338577487,1726744239954,-500.0,0.00016438,2]
[338577488,1726744239964,-500.0,0.00016438,2]
[338577489,1726744239973,-500.0,0.00016438,2]
[338577490,1726744239982,-500.0,0.00016438,2]
[338577491,1726744239991,-500.0,0.00016438,2]
[338577492,1726744240001,-500.0,0.00016438,2]
[338577493,1726744240010,-500.0,0.00016438,2]
[338577494,1726744240019,-500.0,0.00016438,2]
[338577495,1726744240028,-500.0,0.00016438,2]
[338577496,1726744240038,-3217.69,0.00016438,2]
[338577497,1726744240047,-929.82,0.00016438,2]
[338577498,1726744240057,-500.0,0.00016438,2]
[338577499,1726744240066,-823.26,0.00016438,2]
[338577501,1726744240075,-500.0,0.00016438,2]
[338577502,1726744240086,-500.0,0.00016438,2]
[338577503,1726744240095,-500.0,0.00016438,2]
[338577504,1726744240104,-500.0,0.00016438,2]
[338577505,1726744240113,-500.0,0.00016438,2]
[338577507,1726744240125,-1022.3,0.00016438,2]
[338577508,1726744240135,-500.0,0.00016438,2]
[338577509,1726744240144,-500.30078167,0.00016438,2]
[338577510,1726744240153,-500.0,0.00016438,2]
[338577511,1726744240162,-753.0,0.00016438,2]
[338577512,1726744240172,-500.0,0.00016438,2]
[338577513,1726744240181,-500.0,0.00016438,2]
[338577514,1726744240191,-500.0,0.00016438,2]
[338577515,1726744240200,-609.26,0.00016438,2]
[338577516,1726744240209,-500.0,0.00016438,2]
[338577517,1726744240219,-500.0,0.00016438,2]
[338577518,1726744240229,-500.0,0.00016438,2]
[338577519,1726744240238,-500.0,0.00016438,2]
[338577520,1726744240248,-500.0,0.00016438,2]
[338577521,1726744240258,-500.0,0.00016438,2]
[338577522,1726744240268,-500.0,0.00016438,2]
[338577523,1726744240278,-500.0,0.00016438,2]
[338577524,1726744240287,-608.57,0.00016438,2]
[338577525,1726744240296,-500.0,0.00016438,2]
[338577526,1726744240305,-972.17,0.00016438,2]
[338577527,1726744240315,-500.0,0.00016438,2]
[338577528,1726744240324,-500.0,0.00016438,2]
[338577529,1726744240334,-500.0,0.00016438,2]
[338577530,1726744240343,-500.0,0.00016438,2]
[338577531,1726744240353,-1251.87,0.00016438,2]
[338577532,1726744240362,-2515.77,0.00016438,2]
[338577533,1726744240371,-500.0,0.00016438,2]
[338577534,1726744240380,-505.57,0.00016438,2]
[338577535,1726744240390,-500.0,0.00016438,2]
[338577536,1726744240399,-1179.5,0.00016438,2]
[338577537,1726744240409,-500.0,0.00016438,2]
[338577538,1726744240418,-500.0,0.00016438,2]
[338577539,1726744240427,-504.63365965,0.00016438,2]
[338577540,1726744240437,-504.60286213,0.00016438,2]
[338577541,1726744240446,-500.0,0.00016438,2]
[338577542,1726744240456,-500.0,0.00016438,2]
[338577543,1726744240466,-1171.1,0.00016438,2]
[338577544,1726744240476,-500.0,0.00016438,2]
[338577545,1726744240486,-1243.2,0.00016438,2]
[338577546,1726744240495,-791.64,0.00016438,2]
[338577547,1726744240505,-888.67,0.00016438,2]
[338577548,1726744240515,-500.0,0.00016438,2]
[338577549,1726744240524,-500.0,0.00016438,2]
[338577550,1726744240534,-1037.59,0.00016438,2]
[338577551,1726744240543,-500.0,0.00016438,2]
[338577552,1726744240552,-500.0,0.00016438,2]
[338577553,1726744240562,-552.3,0.00016438,2]
[338577554,1726744240571,-500.0,0.00016438,2]
[338577555,1726744240581,-1433.74,0.00016438,2]
[338577556,1726744240590,-500.0,0.00016438,2]
[338577557,1726744240599,-503.21866474,0.00016438,2]
[338577558,1726744240610,-641.12,0.00016438,2]
[338577559,1726744240619,-500.0,0.00016438,2]
[338577560,1726744240630,-500.0,0.00016438,2]
[338577561,1726744240639,-500.0,0.00016438,2]
[338577562,1726744240650,-500.0,0.00016438,2]
[338577563,1726744240661,-500.0,0.00016438,2]
[338577564,1726744240670,-500.0,0.00016438,2]
[338577565,1726744240680,-500.0,0.00016438,2]
[338577566,1726744240689,-500.0,0.00016438,2]
[338577567,1726744240699,-204.30020038,0.00016438,2]
[338577568,1726744240709,-500.0,0.00016438,2]
[338577569,1726744240720,-500.0,0.00016438,2]
[338577570,1726744240730,-500.44663247,0.00016438,2]
[338577571,1726744240739,-541.4,0.00016438,2]
[338577572,1726744240748,-500.0,0.00016438,2]
[338577573,1726744240758,-500.0,0.00016438,2]
[338577574,1726744240767,-500.0,0.00016438,2]
[338577575,1726744240777,-500.0,0.00016438,2]
[338577576,1726744240786,-1974.29,0.00016438,2]
[338577577,1726744240796,-1359.19,0.00016438,2]
[338577578,1726744240805,-1078.17,0.00016438,2]
[338577579,1726744240815,-500.0,0.00016438,2]
[338577580,1726744240824,-500.0,0.00016438,2]
[338577581,1726744240834,-500.0,0.00016438,2]
[338577582,1726744240844,-863.04,0.00016438,2]
[338577583,1726744240854,-1385.27,0.00016438,2]
[338577584,1726744240863,-500.0,0.00016438,2]
[338577585,1726744240873,-581.45,0.00016438,2]
[338577586,1726744240883,-871.4,0.00016438,2]
[338577587,1726744240892,-500.0,0.00016438,2]
[338577588,1726744240901,-500.0,0.00016438,2]
[338577589,1726744240911,-500.0,0.00016438,2]
[338577590,1726744240920,-500.0,0.00016438,2]
[338577591,1726744240930,-500.0,0.00016438,2]
[338577592,1726744240939,-500.0,0.00016438,2]
[338577593,1726744240948,-500.0,0.00016438,2]
[338577594,1726744240957,-285.1884437,0.00016438,2]
[338577595,1726744240968,-500.70581007,0.00016438,2]
[338577596,1726744240978,-550.19,0.00016438,2]
[338577597,1726744240988,-803.23,0.00016438,2]
[338577598,1726744241000,-511.54,0.00016438,2]
[338577599,1726744241011,-984.89,0.00016438,2]
[338577600,1726744241023,-1312.96,0.00016438,2]
[338577601,1726744241035,-216.9,0.00016438,2]
[338577602,1726744241045,-500.0,0.00016438,2]
[338577603,1726744241056,-682.62,0.00016438,2]
[338577604,1726744241216,-343.87613117,0.00016438,2]
[338577605,1726744241226,-500.0,0.00016438,2]
[338577606,1726744241236,-554.26447383,0.00016438,2]
[338577607,1726744241247,-558.02173771,0.00016438,2]
[338577608,1726744241256,-525.31822053,0.00016438,2]
[338577609,1726744241267,-500.0,0.00016438,2]
[338577610,1726744241276,-733.29,0.00016438,2]
[338577611,1726744241287,-1440.18,0.00016438,2]
[338577612,1726744241298,-500.0,0.00016438,2]
[338577613,1726744241309,-500.0,0.00016438,2]
[338577614,1726744241318,-844.32,0.00016438,2]
[338577615,1726744241329,-647.68,0.00016438,2]
[338577616,1726744241339,-878.08,0.00016438,2]
[338577617,1726744241351,-586.36,0.00016438,2]
[338577618,1726744241361,-500.0,0.00016438,2]
[338577619,1726744241371,-973.63,0.00016438,2]
[338577620,1726744241381,-500.0,0.00016438,2]
[338577621,1726744241391,-1448.07,0.00016438,2]